Department Family,Entity,Date,Expense Type,Expense Area,Supplier,VAT Registration Number,Purchase Invoice Number,AP Amount
Department of Health,Royal Papworth Hospital NHS Foundation Trust,5/31/2022,Med Equip Additions,Balance Sheet,APC CARDIOVASCULAR LTD,563354635,947578,"52,819.02"
Department of Health,Royal Papworth Hospital NHS Foundation Trust,5/31/2022,Extrnl Rehrge : Recivd,Clinical Perfusion,CAMBRIDGE PERFUSION SERVICES LLP,924492904,2187,"115,701.88"
Department of Health,Royal Papworth Hospital NHS Foundation Trust,5/31/2022,Extrnl Rehrge : Recivd,ECMO program,CAMBRIDGE PERFUSION SERVICES LLP,924492904,2193,"86,607.18"
Department of Health,Royal Papworth Hospital NHS Foundation Trust,5/31/2022,Vascular Implants,Vad,CAMBRIDGE PERFUSION SERVICES LLP,924492904,2196,"30,791.60"
Department of Health,Royal Papworth Hospital NHS Foundation Trust,5/31/2022,"Books, Journals & Subscr",Foundation Trust,CARE QUALITY COMMISSION,GB 948043217,43120164,"135,206.00"
Department of Health,Royal Papworth Hospital NHS Foundation Trust,5/31/2022,Info Tech Security Costs,Sitewide I T,CELERITY LTD,798205100,9241,"27,001.44"
Department of Health,Royal Papworth Hospital NHS Foundation Trust,5/31/2022,Hardware & Crockery,Sitewide I T,CHARTERHOUSE VOICE & DATA LTD,311 3890 28,INV00000000001052,"68,700.99"
Department of Health,Royal Papworth Hospital NHS Foundation Trust,5/31/2022,Laboratory External Tests,Pathology,CHRYSTAL CONSULTING LTD,,60505,"56,767.78"
Department of Health,Royal Papworth Hospital NHS Foundation Trust,5/31/2022,Rent,Waterbeach,DEFENCE INFRASTRUCTURE ORGANISATION,,1151598,"60,279.25"
Department of Health,Royal Papworth Hospital NHS Foundation Trust,5/31/2022,Electricity,Energy,EDF ENERGY 1 LTD,523041202,000012285194,"143,989.78"
Department of Health,Royal Papworth Hospital NHS Foundation Trust,5/31/2022,Med & Surg Maint Contract,Technical Services,GETINGE LTD,GB 468850893,3129132503,"24,575.16"
Department of Health,Royal Papworth Hospital NHS Foundation Trust,5/31/2022,Drugs,Balance Sheet,HEALTHCARE AT HOME LTD,873342418-1,HAHMAYCONS01,"182,613.56"
Department of Health,Royal Papworth Hospital NHS Foundation Trust,5/31/2022,Drugs,Balance Sheet,HEALTHCARE AT HOME LTD,873342418-1,HAHMAYCONS02,"222,312.16"
Department of Health,Royal Papworth Hospital NHS Foundation Trust,5/31/2022,Drugs,Balance Sheet,HEALTHCARE AT HOME LTD,873342418-1,HAHMAYCONS03,"214,372.44"
Department of Health,Royal Papworth Hospital NHS Foundation Trust,5/31/2022,Drugs,Balance Sheet,HEALTHCARE AT HOME LTD,873342418-1,HAHMAYCONS04,"47,484.93"
Department of Health,Royal Papworth Hospital NHS Foundation Trust,5/31/2022,Income tax - Current,Balance Sheet,INLAND REVENUE CIS,,126PQ001177772301,"2,742,687.51"
Department of Health,Royal Papworth Hospital NHS Foundation Trust,5/31/2022,Computer Maintenance,Commissioning and Income,INSOURCE LTD,205079332,30186,"48,126.00"
Department of Health,Royal Papworth Hospital NHS Foundation Trust,5/31/2022,Audit Fees: Statutory,Finance,KPMG LLP,791788859,5502424639,"61,200.00"
Department of Health,Royal Papworth Hospital NHS Foundation Trust,5/31/2022,Cleaning Equipment,Technical Services,LIVANOVA UK LTD,,2022203102,"58,326.00"
Department of Health,Royal Papworth Hospital NHS Foundation Trust,5/31/2022,Drugs,Balance Sheet,LLOYDS PHARMACY CLINICAL HOMECARE LTD,GB 222516987,HCS0518117,"174,673.84"
Department of Health,Royal Papworth Hospital NHS Foundation Trust,5/31/2022,Drugs,Balance Sheet,LLOYDS PHARMACY CLINICAL HOMECARE LTD,GB 222516987,LPCH May22 Con1,"134,975.24"
Department of Health,Royal Papworth Hospital NHS Foundation Trust,5/31/2022,Drugs,Balance Sheet,LLOYDS PHARMACY CLINICAL HOMECARE LTD,GB 222516987,LPCH May22 Con2,"206,432.72"
Department of Health,Royal Papworth Hospital NHS Foundation Trust,5/31/2022,Drugs,Balance Sheet,LLOYDS PHARMACY CLINICAL HOMECARE LTD,GB 222516987,LPCH May22 Con3,"190,553.28"
Department of Health,Royal Papworth Hospital NHS Foundation Trust,5/31/2022,Drugs,Balance Sheet,LLOYDS PHARMACY CLINICAL HOMECARE LTD,GB 222516987,LPCH May22 Con4,"182,613.56"
Department of Health,Royal Papworth Hospital NHS Foundation Trust,5/31/2022,Drugs,Balance Sheet,LLOYDS PHARMACY CLINICAL HOMECARE LTD,GB 222516987,LPCH May22 Con5,"118,098.59"
Department of Health,Royal Papworth Hospital NHS Foundation Trust,5/31/2022,Drugs,Balance Sheet,LLOYDS PHARMACY CLINICAL HOMECARE LTD,GB 222516987,LPCHMAYCONS06,"174,673.84"
Department of Health,Royal Papworth Hospital NHS Foundation Trust,5/31/2022,Drugs,Balance Sheet,LLOYDS PHARMACY CLINICAL HOMECARE LTD,GB 222516987,LPCHMAYCONS08,"27,462.99"
Department of Health,Royal Papworth Hospital NHS Foundation Trust,5/31/2022,Contr Grounds & Gardens,Engineering,MAPP PROPERTY MANAGEMENT LTD,,565000364,"63,950.33"
Department of Health,Royal Papworth Hospital NHS Foundation Trust,5/31/2022,Med & Surg Equip General,NHSBT Morgan Study,NEUCIN DESIGN LTD,272195104,NDI1110,"32,139.34"
Department of Health,Royal Papworth Hospital NHS Foundation Trust,5/31/2022,Med & Surg Equip General,NHSBT Morgan Study,NEUCIN DESIGN LTD,272195104,NDI1114,"30,097.52"
Department of Health,Royal Papworth Hospital NHS Foundation Trust,5/31/2022,External Consultancy Fees,Foundation Trust,NHS ARDEN AND GEM CSU,,7312624929,"44,985.00"
Department of Health,Royal Papworth Hospital NHS Foundation Trust,5/31/2022,Minor Works,Engineering,NPH HEALTHCARE LTD,,SI1521,"167,931.25"
Department of Health,Royal Papworth Hospital NHS Foundation Trust,5/31/2022,Various,Various,NPH HEALTHCARE LTD,,SI1522,"1,313,278.36"
Department of Health,Royal Papworth Hospital NHS Foundation Trust,5/31/2022,Private Patients Revenue,Private Patients Income,PAPWORTH RADIOLOGY,,10451,"30,068.55"
Department of Health,Royal Papworth Hospital NHS Foundation Trust,5/31/2022,Computer Maintenance,Sitewide I T,PHILIPS ELECTRONICS UK LTD,407850060,949211474,"80,402.48"
Department of Health,Royal Papworth Hospital NHS Foundation Trust,5/31/2022,Drugs,Balance Sheet,POLAR SPEED DISTRIBUTION LTD,849745765,PSMAYCONS01,"51,499.50"
Department of Health,Royal Papworth Hospital NHS Foundation Trust,5/31/2022,Drugs,Balance Sheet,POLAR SPEED DISTRIBUTION LTD,849745765,PSMAYCONS02,"42,464.50"
Department of Health,Royal Papworth Hospital NHS Foundation Trust,5/31/2022,Drugs,Balance Sheet,POLAR SPEED DISTRIBUTION LTD,849745765,PSMAYCONS03,"31,622.50"
Department of Health,Royal Papworth Hospital NHS Foundation Trust,5/31/2022,Drugs,Balance Sheet,POLAR SPEED DISTRIBUTION LTD,849745765,PSMAYCONS04,"61,438.00"
Department of Health,Royal Papworth Hospital NHS Foundation Trust,5/31/2022,Drugs,Balance Sheet,POLAR SPEED DISTRIBUTION LTD,849745765,PSMAYCONS06,"25,507.71"
Department of Health,Royal Papworth Hospital NHS Foundation Trust,5/31/2022,Drugs,Balance Sheet,POLAR SPEED DISTRIBUTION LTD,849745765,PSMAYCONS07,"33,096.78"
Department of Health,Royal Papworth Hospital NHS Foundation Trust,5/31/2022,Drugs,Balance Sheet,POLAR SPEED DISTRIBUTION LTD,849745765,PSMAYCONS08,"32,675.17"
Department of Health,Royal Papworth Hospital NHS Foundation Trust,5/31/2022,Professional Fees,Sitewide I T,ROYAL COLLEGE OF PHYSICIANS,778584461,INV031106,"30,000.00"
Department of Health,Royal Papworth Hospital NHS Foundation Trust,5/31/2022,Other Liabilities - Curr,Balance Sheet,SUPPLY CHAIN COORDINATION LIMITED,290885854,1123015464,"584,037.68"
Department of Health,Royal Papworth Hospital NHS Foundation Trust,5/31/2022,Other Liabilities - Curr,Balance Sheet,SUPPLY CHAIN COORDINATION LIMITED,290885854,1123019767,"580,109.42"
Department of Health,Royal Papworth Hospital NHS Foundation Trust,5/31/2022,Other Liabilities - Curr,Balance Sheet,SUPPLY CHAIN COORDINATION LIMITED,290885854,1123024472,"596,033.05"
Department of Health,Royal Papworth Hospital NHS Foundation Trust,5/31/2022,Other Liabilities - Curr,Balance Sheet,SUPPLY CHAIN COORDINATION LIMITED,290885854,1123032151,"567,900.13"
Department of Health,Royal Papworth Hospital NHS Foundation Trust,5/31/2022,Med & Surg Maint Contract,Technical Services,SUPPLY CHAIN COORDINATION LIMITED,290885854,2123000558,"213,724.92"
Department of Health,Royal Papworth Hospital NHS Foundation Trust,5/31/2022,Services Received - HAs,External Pathology,UK HEALTH SECURITY AGENCY,888851648,5008829,"73,410.27"
,,,,,,,,"10,275,419.20"
